bitfinex/quotes_BTCUSD_20250205
["timestamp","ask_amount","ask_price","bid_price","bid_amount"]
[1738795630411,0.0048682,96381.0,96373.0,0.01]
[1738795630663,0.15,96379.0,96373.0,0.01]
[1738795630862,0.15,96377.0,96373.0,0.01]
[1738795631036,0.10250365,96376.0,96375.0,0.01]
[1738795631241,0.10736708,96376.0,96375.0,0.01]
[1738795631451,0.00486343,96376.0,96375.0,0.01]
[1738795631654,0.00895692,96383.0,96378.0,0.01]
[1738795631947,0.15,96381.0,96378.0,0.01]
[1738795632152,0.10250365,96380.0,96378.0,0.01]
[1738795632500,0.10250365,96380.0,96379.0,0.01]
[1738795633097,0.25250365,96380.0,96379.0,0.01]
[1738795633339,0.15,96380.0,96379.0,0.01]
[1738795633491,0.00895692,96383.0,96382.0,0.01]
[1738795633492,0.00886504,96383.0,96382.0,0.01]
[1738795633692,0.00013303,96383.0,96382.0,0.01]
[1738795634575,0.00013303,96383.0,96382.0,0.24274317]
[1738795634770,0.00013303,96383.0,96382.0,0.32064317]
[1738795634917,0.00013303,96383.0,96382.0,0.35168865]
[1738795635474,0.00013303,96383.0,96382.0,0.4541923]
[1738795635879,0.00013303,96383.0,96382.0,0.4641923]
[1738795637078,0.00013303,96383.0,96382.0,0.47387636]
[1738795638134,0.00013303,96383.0,96382.0,0.62387636]
[1738795638308,0.09087549,96414.0,96413.0,0.01]
[1738795639321,0.24645449,96414.0,96413.0,0.01]
[1738795639466,0.24645449,96414.0,96413.0,0.01014026]
[1738795641045,0.155579,96414.0,96413.0,0.01014026]
[1738795641192,0.00865238,96418.0,96416.0,0.01]
[1738795641400,0.155572,96418.0,96417.0,0.01]
[1738795642198,0.155572,96418.0,96413.0,0.00014026]
[1738795642199,0.155572,96418.0,96416.0,0.01]
[1738795642405,0.155572,96418.0,96417.0,0.01]
[1738795642971,0.01084033,96418.0,96417.0,0.01]
[1738795643179,0.207423,96421.0,96417.0,0.01]
[1738795643376,0.305556,96428.0,96427.0,0.01]
[1738795643558,0.40805965,96428.0,96427.0,0.01]
[1738795644651,0.61546965,96428.0,96427.0,0.01]
[1738795645573,0.45991365,96428.0,96427.0,0.01]
[1738795645775,0.61546965,96428.0,96427.0,0.01]
[1738795646197,0.155559,96426.0,96425.0,0.01]
[1738795646558,0.305559,96426.0,96425.0,0.01]
[1738795647562,0.31263896,96426.0,96425.0,0.01]
[1738795648747,0.305561,96425.0,96424.0,0.01]
[1738795649081,0.31241744,96425.0,96424.0,0.01]
[1738795650563,0.16241744,96425.0,96424.0,0.01]
[1738795656054,0.15685644,96425.0,96413.0,0.00014026]
[1738795656282,0.15,96424.0,96417.0,0.01]
[1738795656481,0.15686407,96424.0,96413.0,0.00014026]
[1738795656686,0.15686407,96424.0,96417.0,0.01]
[1738795656687,0.25936772,96424.0,96417.0,0.01]
[1738795657006,0.305572,96418.0,96417.0,0.01]
[1738795657378,0.3124275,96418.0,96417.0,0.01]
[1738795658812,0.5198585,96418.0,96417.0,0.01]
[1738795660177,0.305574,96417.0,96416.0,0.01]
[1738795660436,0.16242807,96417.0,96416.0,0.01]
[1738795662699,0.16014338,96417.0,96416.0,0.01]
[1738795662994,0.16242566,96417.0,96416.0,0.01]
[1738795663742,0.16014234,96417.0,96416.0,0.01]
[1738795663948,0.16242661,96417.0,96416.0,0.04090004]
[1738795665563,0.16242661,96417.0,96416.0,0.01]
[1738795665863,0.16242661,96417.0,96413.0,0.00024706]
[1738795665864,0.31242661,96417.0,96413.0,0.00024706]
[1738795666071,0.155579,96414.0,96413.0,0.01024706]
[1738795666216,0.305579,96414.0,96413.0,0.01024706]
[1738795666417,0.31242783,96414.0,96413.0,0.01024706]
[1738795672753,0.31242783,96414.0,96413.0,0.01995951]
[1738795675493,0.15684883,96414.0,96413.0,0.01995951]
[1738795675660,0.00684883,96414.0,96413.0,0.04261693]
[1738795675931,0.155572,96418.0,96413.0,0.04261693]
[1738795676105,0.01084333,96428.0,96424.0,0.01]
[1738795676593,0.0796,96440.0,96424.0,0.01]
[1738795676981,0.01110714,96430.0,96424.0,0.01]
[1738795677762,0.00708209,96425.0,96424.0,0.01]
[1738795678374,0.00479615,96425.0,96424.0,0.01]
[1738795678775,0.00708208,96425.0,96424.0,0.01]
[1738795678999,0.00479615,96425.0,96424.0,0.01]
[1738795679198,0.00708208,96425.0,96424.0,0.01]
[1738795679442,0.00479615,96425.0,96424.0,0.01]
[1738795679646,0.00479615,96425.0,96424.0,0.04235037]
[1738795679869,0.00022428,96425.0,96424.0,0.04235037]
[1738795681123,0.00022428,96425.0,96424.0,0.06785272]
[1738795682584,0.00022428,96425.0,96424.0,0.09085272]
[1738795683114,0.00022428,96425.0,96424.0,0.34891837]
[1738795683315,0.00022428,96425.0,96424.0,0.34788146]
[1738795683858,0.00022428,96425.0,96424.0,0.35892003]
[1738795684541,0.00013243,96425.0,96424.0,0.35892003]
[1738795687613,0.00013243,96425.0,96424.0,0.38987506]
[1738795687808,0.00013243,96425.0,96424.0,0.39987506]
[1738795688233,0.06483083,96465.0,96424.0,0.24431306]
[1738795688431,0.15,96463.0,96462.0,0.01]
[1738795688776,0.15462931,96463.0,96462.0,0.01]
[1738795689446,0.00462931,96463.0,96462.0,0.01]
[1738795689597,0.00509741,96463.0,96462.0,0.01]
[1738795689799,0.0004681,96463.0,96462.0,0.01]
[1738795690001,0.00509741,96463.0,96462.0,0.01]
[1738795690264,0.0004681,96463.0,96462.0,0.01]
[1738795690757,0.00509741,96463.0,96462.0,0.01]
[1738795692059,0.16059741,96463.0,96462.0,0.01]
[1738795692446,0.00509741,96463.0,96460.0,0.01]
[1738795692644,0.155501,96462.0,96461.0,0.01]
[1738795692949,0.16012936,96462.0,96461.0,0.01]
[1738795698005,0.00462836,96462.0,96461.0,0.01]
[1738795698225,0.16012936,96462.0,96461.0,0.01]
[1738795698970,0.00462836,96462.0,96461.0,0.01]
[1738795700313,0.00462836,96462.0,96459.0,0.01]
[1738795700513,0.155504,96460.0,96459.0,0.01]
[1738795700918,0.15,96459.0,96458.0,0.01]
[1738795701124,0.305506,96459.0,96458.0,0.01]
[1738795701331,0.15463389,96459.0,96458.0,0.01]
[1738795702330,0.10713754,96459.0,96458.0,0.01]
[1738795702529,0.18393754,96459.0,96458.0,0.01]
[1738795703345,0.18393754,96459.0,96430.0,0.09483062]
[1738795703548,0.15,96457.0,96456.0,0.01]
[1738795703779,0.25250365,96457.0,96456.0,0.01]
[1738795703928,0.25250365,96457.0,96427.0,0.08303019]
[1738795703929,0.049,96456.0,96441.0,0.01]
[1738795704135,0.15,96454.0,96451.0,0.01]
[1738795704336,0.15,96452.0,96451.0,0.01]
[1738795704505,0.25250365,96452.0,96451.0,0.01]
[1738795704723,0.25715418,96452.0,96451.0,0.01]
[1738795705079,0.25715418,96452.0,96421.0,0.08303019]
[1738795705080,0.15,96450.0,96421.0,0.08303019]
[1738795705280,0.15,96447.0,96421.0,0.08303019]
[1738795705457,0.06221,96446.0,96421.0,0.08303019]
[1738795705657,0.15,96444.0,96421.0,0.08303019]
[1738795705983,0.10714312,96443.0,96421.0,0.08303019]
[1738795706189,0.15,96442.0,96422.0,0.01]
[1738795706364,0.0823,96439.0,96413.0,0.0001068]
[1738795706568,0.0496,96436.0,96413.0,0.0001068]
[1738795706784,0.15,96434.0,96426.0,0.01]
[1738795706996,0.15,96432.0,96426.0,0.01]
[1738795707173,0.15,96430.0,96426.0,0.01]
[1738795707374,0.10250365,96431.0,96426.0,0.01]
[1738795707375,0.15,96428.0,96426.0,0.01]
[1738795707610,0.10250365,96427.0,96425.0,0.01]
[1738795707823,0.10709766,96427.0,96425.0,0.01]
[1738795708033,0.10709766,96427.0,96425.0,0.01014026]
[1738795714335,0.10709766,96427.0,96425.0,0.00014026]
[1738795714572,0.10709766,96427.0,96425.0,0.01014026]
[1738795718200,0.15,96426.0,96425.0,0.01014026]
[1738795718407,0.25250365,96426.0,96425.0,0.01014026]
[1738795718613,0.25709198,96426.0,96425.0,0.01014026]
[1738795719490,0.41265098,96426.0,96425.0,0.01014026]
[1738795720291,0.41265098,96426.0,96425.0,0.01024696]
[1738795722826,0.41265098,96426.0,96425.0,0.00024696]
[1738795723007,0.41265098,96426.0,96425.0,0.01024696]
[1738795723449,0.41493121,96426.0,96425.0,0.01024696]
[1738795727211,0.41493121,96426.0,96425.0,0.00024696]
[1738795727448,0.41493121,96426.0,96425.0,0.01024696]
[1738795728807,0.00686856,96426.0,96425.0,0.01024696]
[1738795729010,0.00686856,96426.0,96425.0,0.27130796]
[1738795729011,0.00457914,96426.0,96425.0,0.27130796]
[1738795729279,0.00457914,96426.0,96425.0,0.34610039]
[1738795729443,0.2,96447.0,96425.0,0.34610039]
[1738795729444,0.2,96447.0,96432.0,0.2074]
[1738795729684,0.2,96447.0,96446.0,0.0929]
[1738795729871,0.207336,96462.0,96461.0,0.01]
[1738795730083,0.0112876,96465.0,96462.0,0.01]
[1738795730231,0.15572428,96463.0,96462.0,0.01]
[1738795731155,0.15619238,96463.0,96462.0,0.01]
[1738795731353,0.00069238,96463.0,96462.0,0.01]
[1738795732005,0.00069238,96463.0,96462.0,0.01589]
[1738795733048,0.00704474,96477.0,96462.0,0.01589]
[1738795733255,0.004147,96506.0,96479.0,0.01]
[1738795733453,0.15,96491.0,96479.0,0.01]
[1738795733709,0.10185109,96482.0,96479.0,0.01]
[1738795734092,0.09087549,96482.0,96479.0,0.01]
[1738795734517,0.08636,96507.0,96479.0,0.01]
[1738795734715,0.15,96497.0,96479.0,0.01]
[1738795734944,0.08636,96507.0,96479.0,0.01]
[1738795735081,0.01083051,96489.0,96479.0,0.01]
[1738795735278,0.04682428,96508.0,96479.0,0.01]
[1738795735478,0.00022428,96508.0,96479.0,0.01]
[1738795735725,0.01063742,96490.0,96479.0,0.01]
[1738795737555,0.01063742,96490.0,96479.0,0.18951037]
[1738795738471,0.00022428,96508.0,96500.0,0.01]
[1738795738671,0.00036505,96501.0,96500.0,0.01]
[1738795740677,0.00503985,96501.0,96500.0,0.01]
[1738795741376,0.00503985,96501.0,96500.0,0.02664872]
[1738795741585,0.00036505,96501.0,96500.0,0.02664872]
[1738795741949,0.00036505,96501.0,96500.0,0.02768483]
[1738795743410,0.00036505,96501.0,96500.0,0.02664872]
[1738795743621,0.00036505,96501.0,96500.0,0.02768482]
[1738795744273,0.00027324,96501.0,96500.0,0.02768482]
[1738795745639,0.00027324,96501.0,96500.0,0.05068482]
[1738795745866,0.00027324,96501.0,96500.0,0.1894761]
[1738795746537,0.00027324,96501.0,96500.0,0.0340361]
[1738795748356,0.155417,96515.0,96514.0,0.01]
[1738795748357,0.13758843,96515.0,96514.0,0.01]
[1738795752918,0.14230449,96515.0,96514.0,0.01]
[1738795753679,0.24480814,96515.0,96514.0,0.01]
[1738795753838,0.24480814,96515.0,96494.0,1.02561891]
[1738795753839,0.155422,96511.0,96510.0,0.01]
[1738795754017,0.25792565,96511.0,96510.0,0.01]
[1738795754218,0.10727228,96511.0,96490.0,0.14453533]
[1738795754435,0.155425,96509.0,96508.0,0.01]
[1738795754642,0.155438,96501.0,96500.0,0.01]
[1738795754862,0.26269538,96509.0,96508.0,0.01]
[1738795755118,0.26269538,96509.0,96491.0,0.02275655]
[1738795755119,0.21201212,96501.0,96491.0,0.02275655]
[1738795755321,0.1242068,96515.0,96514.0,0.01]
[1738795755567,0.38212645,96515.0,96514.0,0.01]
[1738795756966,0.39309586,96515.0,96514.0,0.01]
[1738795757401,0.207233,96510.0,96492.0,0.02505464]
[1738795757518,0.23767986,96515.0,96493.0,0.01698143]
[1738795757519,0.155445,96497.0,96493.0,0.01698143]
[1738795757723,0.155441,96500.0,96499.0,0.01]
[1738795758477,0.155441,96500.0,96499.0,0.02927273]
[1738795759325,0.155441,96500.0,96499.0,0.01927273]
[1738795760715,0.15544,96500.0,96499.0,0.02927273]
[1738795761262,0.15544,96500.0,96493.0,0.01698143]
[1738795761477,0.15544,96500.0,96494.0,0.01867957]
[1738795761927,0.15544,96500.0,96499.0,0.01]
[1738795763514,0.155437,96503.0,96502.0,0.01]
[1738795763701,0.25794065,96503.0,96502.0,0.01]
[1738795764342,0.207234,96510.0,96502.0,0.01]
[1738795764560,0.362658,96510.0,96509.0,0.01]
[1738795765203,0.3251,96514.0,96513.0,0.01]
[1738795765743,0.480517,96514.0,96513.0,0.01]
[1738795765938,0.3251,96514.0,96513.0,0.01]
[1738795766426,0.480517,96514.0,96513.0,0.01]
[1738795766578,0.3251,96514.0,96513.0,0.01]
[1738795767622,0.00477485,96514.0,96513.0,0.01]
[1738795768048,0.00477485,96514.0,96513.0,0.02525]
[1738795768267,0.0001068,96515.0,96514.0,0.01]
[1738795768483,0.0001068,96515.0,96514.0,0.04226969]
[1738795770237,0.0001068,96515.0,96514.0,0.06165469]
[1738795770910,0.0001068,96515.0,96514.0,0.24110774]
[1738795771118,0.0001068,96515.0,96514.0,0.41394181]
[1738795771435,0.0001068,96515.0,96514.0,0.51644546]
[1738795771629,0.0001068,96515.0,96514.0,0.57754949]
[1738795772037,0.0001068,96515.0,96514.0,0.55816449]
[1738795778283,0.18848608,96546.0,96545.0,0.01]
[1738795778671,0.19330524,96546.0,96545.0,0.01]
[1738795779592,0.0049593,96546.0,96545.0,0.01]
[1738795780334,0.1603253,96546.0,96545.0,0.01]
[1738795781139,0.26282895,96546.0,96545.0,0.01]
[1738795781787,0.34452895,96546.0,96545.0,0.01]
[1738795782250,0.18916295,96546.0,96545.0,0.01]
[1738795782691,0.18916295,96546.0,96521.0,1.02561891]
[1738795783008,0.10250365,96545.0,96544.0,0.01]
[1738795783218,0.10733689,96545.0,96544.0,0.01]
[1738795783372,0.155378,96539.0,96525.0,0.08303019]
[1738795783716,0.26269068,96538.0,96537.0,0.01]
[1738795784816,0.04879517,96546.0,96537.0,0.01]
[1738795785019,0.04879517,96546.0,96525.0,0.08303019]
[1738795785020,0.10250365,96545.0,96543.0,0.01]
[1738795785366,0.10250365,96545.0,96544.0,0.01]
[1738795787173,0.10250365,96545.0,96543.0,0.01]
[1738795787350,0.10250365,96545.0,96526.0,0.01867957]
[1738795787494,0.10250365,96545.0,96544.0,0.01]
[1738795787689,0.42760365,96545.0,96544.0,0.01]
[1738795790123,0.42760365,96545.0,96544.0,0.01022407]
[1738795791363,0.58297065,96545.0,96544.0,0.01022407]
[1738795797116,0.66267065,96545.0,96544.0,0.01022407]
[1738795797719,0.50730365,96545.0,96544.0,0.01022407]
[1738795797924,0.58297065,96545.0,96544.0,0.01022407]
[1738795800909,0.480467,96545.0,96544.0,0.01022407]
[1738795801839,0.3251,96545.0,96544.0,0.01022407]
[1738795803027,0.480467,96545.0,96544.0,0.01022407]
[1738795805261,0.3251,96545.0,96544.0,0.01022407]
[1738795805775,0.1554727,96546.0,96545.0,0.01]
[1738795805776,0.3252067,96546.0,96545.0,0.01]
[1738795805981,0.42771035,96546.0,96545.0,0.01]
[1738795807447,0.3252067,96546.0,96545.0,0.01]
[1738795811522,0.0001067,96546.0,96545.0,0.01]
[1738795813075,0.0001067,96546.0,96545.0,0.10045]
[1738795813351,0.0001067,96546.0,96545.0,0.04232503]
[1738795813687,0.0001067,96546.0,96545.0,0.01]
[1738795815038,0.0001067,96546.0,96545.0,0.00925]
[1738795824956,0.0001067,96546.0,96545.0,0.00947407]
[1738795839742,0.0459067,96546.0,96545.0,0.00022407]
[1738795839947,0.14841035,96546.0,96545.0,0.00947407]
[1738795840190,0.30377635,96546.0,96545.0,0.00947407]
[1738795842787,0.30377635,96546.0,96545.0,0.00022407]
[1738795843017,0.30377635,96546.0,96545.0,0.00947407]
[1738795843405,0.45377635,96546.0,96545.0,0.00022407]
[1738795844796,0.46695515,96546.0,96545.0,0.00022407]
[1738795848012,0.42115515,96546.0,96545.0,0.00022407]
[1738795848419,0.3186515,96546.0,96545.0,0.00022407]
[1738795850140,0.1632855,96546.0,96545.0,0.00022407]
[1738795850343,0.3186515,96546.0,96545.0,0.00022407]
[1738795851766,0.1501067,96546.0,96545.0,0.00947407]
[1738795859895,0.3054727,96546.0,96545.0,0.00947407]
[1738795860315,0.1501067,96546.0,96545.0,0.00947407]
[1738795860516,0.3054727,96546.0,96545.0,0.00947407]
[1738795861142,0.1501067,96546.0,96545.0,0.00947407]
[1738795862486,0.3054727,96546.0,96545.0,0.00947407]
[1738795864915,0.3054727,96546.0,96545.0,0.00022407]
[1738795865115,0.3054727,96546.0,96545.0,0.00947407]
[1738795866089,0.1501067,96546.0,96545.0,0.00947407]
[1738795866314,0.1501067,96546.0,96545.0,0.00022407]
[1738795866473,0.3054727,96546.0,96545.0,0.00022407]
[1738795875507,0.3884727,96546.0,96545.0,0.00022407]
[1738795876653,0.3054727,96546.0,96545.0,0.00022407]
[1738795881638,0.3054727,96546.0,96545.0,0.00947407]
[1738795882600,0.31035004,96546.0,96545.0,0.00947407]
[1738795884557,0.15498404,96546.0,96545.0,0.00947407]
[1738795886255,0.31035004,96546.0,96545.0,0.00947407]
[1738795886662,0.31035004,96546.0,96545.0,0.02886635]
[1738795893365,0.31035004,96546.0,96545.0,0.01961635]
[1738795893366,0.41285369,96546.0,96545.0,0.01961635]
[1738795894713,0.41285369,96546.0,96545.0,0.00022407]
[1738795903122,0.62555734,96546.0,96545.0,0.00022407]
[1738795906560,0.95065734,96546.0,96545.0,0.00022407]
[1738795908161,1.05975734,96546.0,96545.0,0.00022407]
[1738795908388,0.84815369,96546.0,96545.0,0.00022407]
[1738795909210,0.69815369,96546.0,96545.0,0.00022407]
[1738795909431,0.65015369,96546.0,96545.0,0.00022407]
[1738795909868,0.58795369,96546.0,96545.0,0.00022407]
[1738795910285,0.73795369,96546.0,96545.0,0.00022407]
[1738795910490,0.58795369,96546.0,96545.0,0.00022407]
[1738795911359,0.48545004,96546.0,96545.0,0.00022407]
[1738795911585,0.48545004,96546.0,96545.0,0.00947407]
[1738795912241,0.63545004,96546.0,96545.0,0.00947407]
[1738795912666,0.48008404,96546.0,96545.0,0.00947407]
[1738795915693,0.15498404,96546.0,96545.0,0.00947407]
[1738795916097,0.31035004,96546.0,96545.0,0.00947407]
[1738795917645,0.31035004,96546.0,96545.0,0.01534388]
[1738795918572,0.31035004,96546.0,96545.0,0.00947407]
[1738795920943,0.31035004,96546.0,96545.0,0.00022407]
[1738795921151,0.31035004,96546.0,96545.0,0.00947407]
[1738795921528,0.41285369,96546.0,96545.0,0.00947407]
[1738795927479,0.73795369,96546.0,96545.0,0.00947407]
[1738795927616,0.63545004,96546.0,96545.0,0.00947407]
[1738795931034,0.48008404,96546.0,96545.0,0.00947407]
[1738795931460,0.63545004,96546.0,96545.0,0.00947407]
[1738795933040,0.48008404,96546.0,96545.0,0.00947407]
[1738795933273,0.15498404,96546.0,96545.0,0.00947407]
[1738795933485,0.31035004,96546.0,96545.0,0.00947407]
[1738795939341,0.31035004,96546.0,96545.0,0.02886104]
[1738795940337,0.31035004,96546.0,96545.0,0.10396104]
[1738795940744,0.31035004,96546.0,96545.0,0.02886104]
[1738795941346,0.31035004,96546.0,96545.0,0.01961104]
[1738795941575,0.31035004,96546.0,96545.0,0.02886104]
[1738795947042,0.31035004,96546.0,96545.0,0.01961104]
[1738795947250,0.31035004,96546.0,96545.0,0.02886104]
[1738795948385,0.35775004,96546.0,96545.0,0.01961104]
[1738795948834,0.31035004,96546.0,96545.0,0.01961104]
[1738795950234,0.15498404,96546.0,96545.0,0.01961104]
[1738795950430,0.31035004,96546.0,96545.0,0.02886104]
[1738795955212,0.31035004,96546.0,96545.0,0.01961104]
[1738795962854,0.31035004,96546.0,96545.0,0.02886104]
[1738795963061,0.31035004,96546.0,96545.0,0.01961104]
[1738795972251,0.56823319,96546.0,96545.0,0.01961104]
[1738795972454,0.55615369,96546.0,96545.0,0.01961104]
[1738795972787,0.55615369,96546.0,96545.0,0.00022407]
[1738795972987,0.49395369,96546.0,96545.0,0.00022407]
[1738795974176,0.50608766,96546.0,96545.0,0.00022407]
[1738795975003,0.83118766,96546.0,96545.0,0.00022407]
[1738795975240,0.93369131,96546.0,96545.0,0.00022407]
[1738795980956,1.04409131,96546.0,96545.0,0.00022407]
[1738795990286,0.94158766,96546.0,96545.0,0.00022407]
[1738795990493,0.79828766,96546.0,96545.0,0.00022407]
[1738795990669,0.60008766,96546.0,96545.0,0.00022407]
[1738795991072,0.48545004,96546.0,96545.0,0.00947407]
[1738795991273,0.48545004,96546.0,96545.0,0.06594388]
[1738795991607,0.48545004,96546.0,96545.0,0.14204388]
[1738795992109,0.48545004,96546.0,96545.0,0.13277407]
[1738795992250,0.48545004,96546.0,96545.0,0.1521362]
[1738795995713,0.16035004,96546.0,96545.0,0.1521362]
[1738795995918,0.16158147,96546.0,96545.0,0.1521362]
[1738795998965,0.31158147,96546.0,96545.0,0.0195862]
[1738795999514,0.31158147,96546.0,96545.0,0.00022407]
[1738796000889,0.15621547,96546.0,96545.0,0.00947407]
[1738796001100,0.15621547,96546.0,96545.0,0.09267407]
[1738796001217,0.31158147,96546.0,96545.0,0.09267407]
[1738796001999,0.31158147,96546.0,96545.0,0.11202489]
[1738796003422,0.16158147,96546.0,96545.0,0.11202489]
[1738796005080,0.16158147,96546.0,96545.0,0.02882489]
[1738796009224,0.31158147,96546.0,96545.0,0.01957489]
[1738796009564,0.31158147,96546.0,96545.0,0.02882489]
[1738796010004,0.31158147,96546.0,96545.0,0.00947407]
[1738796012780,0.31158147,96546.0,96545.0,0.02882687]
[1738796014220,0.31158147,96546.0,96545.0,0.10662687]
[1738796014649,0.15621547,96546.0,96545.0,0.10662687]
[1738796014868,0.31158147,96546.0,96545.0,0.10662687]
[1738796015070,0.15621547,96546.0,96545.0,0.10662687]
[1738796015266,0.31158147,96546.0,96545.0,0.10662687]
[1738796015676,0.15621547,96546.0,96545.0,0.10662687]
[1738796015890,0.31158147,96546.0,96545.0,0.10662687]
[1738796019572,0.31158147,96546.0,96545.0,0.13763248]
[1738796020645,0.31158147,96546.0,96545.0,0.12838248]
[1738796020845,0.31158147,96546.0,96545.0,0.13763248]
[1738796024158,0.31158147,96546.0,96545.0,0.10662687]
[1738796026515,0.31158147,96546.0,96545.0,0.02882687]
[1738796027946,0.31158147,96546.0,96545.0,0.01957687]
[1738796032385,0.31158147,96546.0,96545.0,0.05062695]
[1738796033804,0.32348881,96546.0,96545.0,0.05062695]
[1738796037453,0.31158147,96546.0,96545.0,0.05987695]
[1738796038890,0.31158147,96546.0,96545.0,0.02882687]
[1738796044309,0.31158147,96546.0,96545.0,0.01957687]
[1738796044519,0.31158147,96546.0,96545.0,0.02882687]
[1738796046949,0.16158147,96546.0,96545.0,0.02882687]
[1738796053141,0.16158147,96546.0,96545.0,0.00947407]
[1738796055054,0.26408512,96546.0,96545.0,0.00947407]
[1738796055460,0.16158147,96546.0,96545.0,0.00947407]
[1738796062665,0.15670413,96546.0,96545.0,0.00947407]
[1738796062826,0.16233735,96546.0,96545.0,0.00947407]
[1738796063755,0.16233735,96546.0,96545.0,0.00022407]
[1738796063756,0.55038344,96546.0,96545.0,0.00022407]
[1738796064181,0.61254344,96546.0,96545.0,0.00022407]
[1738796066297,0.558901,96546.0,96545.0,0.00022407]
[1738796067130,0.884001,96546.0,96545.0,0.00022407]
[1738796067631,0.8839032,96546.0,96545.0,0.00022407]
[1738796071022,0.8020032,96546.0,96545.0,0.00022407]
[1738796072361,0.9294032,96546.0,96545.0,0.00022407]
[1738796072493,1.03190685,96546.0,96545.0,0.00022407]
[1738796072943,0.96974685,96546.0,96545.0,0.00022407]
[1738796075984,0.8672432,96546.0,96545.0,0.00022407]
[1738796077005,0.9294032,96546.0,96545.0,0.00022407]
[1738796077913,0.8672432,96546.0,96545.0,0.00022407]
[1738796081209,0.8672432,96546.0,96544.0,0.00022407]
[1738796081210,0.155414,96516.0,96510.0,0.00022428]
[1738796081424,0.155414,96516.0,96513.0,0.00925]
[1738796081654,0.305417,96514.0,96513.0,0.00925]
[1738796081849,0.305417,96514.0,96510.0,0.00022428]
[1738796081850,0.155416,96515.0,96512.0,0.00925]
[1738796081981,0.15681965,96514.0,96512.0,0.00925]
[1738796082182,0.15681965,96514.0,96513.0,0.00925]
[1738796082382,0.31223665,96514.0,96513.0,0.00925]
[1738796082700,0.31223665,96514.0,96513.0,0.00939014]
[1738796086455,0.31223665,96514.0,96513.0,0.00014014]
[1738796086956,0.40678053,96514.0,96513.0,0.00014014]
[1738796087160,0.31223665,96514.0,96513.0,0.00014014]
[1738796089232,0.4147403,96514.0,96513.0,0.00014014]
[1738796089405,0.7861403,96514.0,96513.0,0.00014014]
[1738796097615,0.8666403,96514.0,96513.0,0.00036463]
[1738796097936,0.96914395,96514.0,96513.0,0.00036463]
[1738796098352,0.305435,96503.0,96502.0,0.00022428]
[1738796098528,0.73303865,96503.0,96502.0,0.00022428]
[1738796098728,0.73989944,96503.0,96502.0,0.00022428]
[1738796099258,0.75717712,96503.0,96502.0,0.00022428]
[1738796099595,0.85968077,96503.0,96502.0,0.00022428]
[1738796100865,0.88731863,96503.0,96502.0,0.00022428]
[1738796102460,0.94842987,96503.0,96502.0,0.00022428]
[1738796103658,0.99382987,96503.0,96502.0,0.00022428]
[1738796107668,0.305454,96491.0,96469.0,0.00925]
[1738796108025,0.30548,96475.0,96469.0,0.00925]
[1738796108229,0.40798365,96475.0,96474.0,0.08317033]
[1738796108429,0.73988471,96475.0,96474.0,0.00014014]
[1738796109471,0.75716239,96475.0,96474.0,0.00014014]
[1738796109583,0.85966604,96475.0,96474.0,0.00014014]
[1738796109781,1.05966604,96475.0,96474.0,0.00014014]
[1738796109983,1.07093514,96475.0,96474.0,0.00014014]
[1738796110184,1.07093514,96475.0,96474.0,0.00036463]
[1738796110849,0.87093514,96475.0,96474.0,0.00036463]
[1738796112974,0.93309514,96475.0,96474.0,0.00036463]
[1738796115082,1.01439514,96475.0,96474.0,0.00036463]
[1738796115837,0.96843149,96475.0,96474.0,0.00036463]
[1738796116038,0.81295149,96475.0,96474.0,0.00036463]
[1738796116360,0.23534784,96475.0,96474.0,0.00961463]
[1738796116496,0.22407874,96475.0,96474.0,0.00961463]
[1738796116700,0.02407874,96475.0,96474.0,0.00961463]
[1738796116925,0.01727768,96475.0,96474.0,0.00961463]
[1738796118077,0.16727768,96481.0,96479.0,0.00925]
[1738796118344,0.16727768,96481.0,96480.0,0.0807]
[1738796119212,0.32274868,96481.0,96480.0,0.0807]
[1738796120122,0.42525233,96481.0,96480.0,0.0807]
[1738796120523,0.75035233,96481.0,96480.0,0.0807]
[1738796122968,0.305472,96480.0,96479.0,0.00925]
[1738796123545,0.305472,96480.0,96475.0,0.081]
[1738796123546,0.15,96480.0,96475.0,0.081]
[1738796123747,0.305479,96476.0,96475.0,0.081]
[1738796124703,0.32275668,96476.0,96475.0,0.081]
[1738796126505,0.64785668,96476.0,96475.0,0.081]
[1738796126976,0.30548,96475.0,96474.0,0.00036463]
[1738796127882,0.31104862,96475.0,96474.0,0.00036463]
[1738796128930,0.41355227,96475.0,96474.0,0.00036463]
[1738796129360,0.84115592,96475.0,96474.0,0.00036463]
[1738796131058,0.73865227,96475.0,96474.0,0.00036463]
[1738796132830,0.80081227,96475.0,96474.0,0.00036463]
[1738796133811,1.00081227,96475.0,96474.0,0.00036463]
[1738796134866,0.80081227,96475.0,96474.0,0.00036463]
[1738796139593,0.87811227,96475.0,96474.0,0.00036463]
[1738796139819,0.98136592,96475.0,96474.0,0.00036463]
[1738796140741,1.18136592,96475.0,96474.0,0.00036463]
[1738796144341,0.305524,96448.0,96447.0,0.07884296]
[1738796144541,0.305524,96448.0,96447.0,0.07931106]
[1738796144767,0.31105334,96448.0,96447.0,0.00069217]
[1738796147080,0.73865699,96448.0,96447.0,0.00069217]
[1738796150064,0.75002048,96448.0,96447.0,0.00069217]
[1738796156537,0.79854519,96448.0,96447.0,0.00069217]
[1738796156774,0.305559,96426.0,96425.0,0.0001067]
[1738796157018,0.31102856,96426.0,96425.0,0.00024696]
[1738796158188,0.30997556,96426.0,96425.0,0.00024696]
[1738796158386,0.29097556,96426.0,96425.0,0.00024696]
[1738796158800,0.71857921,96426.0,96425.0,0.00024696]
[1738796160501,0.82108286,96426.0,96425.0,0.00024696]
[1738796161065,0.71857921,96426.0,96425.0,0.00024696]
[1738796162243,0.79172731,96426.0,96425.0,0.00024696]
[1738796164572,0.83702731,96426.0,96425.0,0.00024696]
[1738796164781,0.305574,96417.0,96413.0,0.0001068]
[1738796164953,0.40807765,96417.0,96416.0,0.00033132]
[1738796165154,0.41353336,96417.0,96416.0,0.00033132]
[1738796165784,0.51603701,96417.0,96416.0,0.00033132]
[1738796167755,0.57819701,96417.0,96416.0,0.00033132]
[1738796167962,0.51603701,96417.0,96416.0,0.00033132]
[1738796168191,0.84113701,96417.0,96416.0,0.00033132]
[1738796169746,0.73863336,96417.0,96416.0,0.00033132]
[1738796170224,0.75582999,96417.0,96416.0,0.00033132]